bitfinex-derivatives/quotes_SOLF0:USTF0_20250903
["timestamp","ask_amount","ask_price","bid_price","bid_amount"]
[1756896666974,7.46,210.08,210.07,0.03290443]
[1756896673485,9.20118792,210.08,210.07,0.03290443]
[1756896678588,7.46,210.08,210.07,0.03290443]
[1756896678788,9.20118792,210.08,210.07,0.03290443]
[1756896684894,9.68118792,210.08,209.97,7.31]
[1756896685086,1.74118792,210.03,209.97,7.31]
[1756896685795,7.38,210.02,209.97,7.31]
[1756896686194,7.38,210.01,209.97,7.31]
[1756896686389,9.12118792,210.01,209.97,7.31]
[1756896688395,7.38,210.0,209.97,7.31]
[1756896693795,1.74118792,210.01,209.93,7.31]
[1756896693999,1.74118792,209.99,209.93,7.31]
[1756896696196,9.12118792,209.99,209.93,7.31]
[1756896698492,7.38,209.99,209.93,7.31]
[1756896698694,1.74118792,209.95,209.88,9.05118792]
[1756896699302,0.03423571,209.94,209.88,9.05118792]
[1756896699800,0.03423571,209.94,209.9,1.74118792]
[1756896700102,0.03423571,209.94,209.91,7.31]
[1756896700309,0.03423571,209.94,209.9,1.74118792]
[1756896700799,0.03423571,209.94,209.89,7.31]
[1756896700996,0.03423571,209.94,209.88,1.74118792]
[1756896701300,0.03423571,209.94,209.89,7.31]
[1756896701494,0.03423571,209.94,209.88,1.74118792]
[1756896701990,0.03423571,209.94,209.89,7.64]
[1756896702397,0.03423571,209.94,209.88,1.74118792]
[1756896702601,0.03423571,209.94,209.89,7.64]
[1756896702797,0.03423571,209.94,209.87,319.94]
[1756896702798,1.77542363,209.94,209.87,319.94]
[1756896703000,1.77542363,209.94,209.88,7.64]
[1756896708102,1.74118792,209.92,209.88,7.64]
[1756896708302,9.02118792,209.92,209.86,116.98]
[1756896708502,1.74118792,209.9,209.8,7.64]
[1756896708703,1.74118792,209.9,209.83,7.64]
[1756896709102,0.03014179,209.89,209.83,7.64]
[1756896710606,0.03014179,209.89,209.85,7.64]
[1756896713500,9.02118792,209.88,209.82,7.64]
[1756896713810,9.02118792,209.88,209.75,320.14]
[1756896713811,1.74118792,209.86,209.8,7.64]
[1756896714503,0.03528833,209.85,209.8,7.64]
[1756896715203,0.03528833,209.85,209.77,7.64]
[1756896715405,1.74118792,209.84,209.77,9.38118792]
[1756896717310,1.74118792,209.84,209.77,7.64]
[1756896718011,0.03528833,209.85,209.79,7.64]
[1756896719311,0.03528833,209.85,209.77,1.74118792]
[1756896719312,1.74118792,209.84,209.77,1.74118792]
[1756896719501,1.74118792,209.84,209.78,7.64]
[1756896720615,7.31528833,209.85,209.78,7.64]
[1756896722318,7.31528833,209.85,209.78,9.38118792]
[1756896722714,7.28,209.84,209.78,7.64]
[1756896727817,7.28,209.82,209.75,1.74118792]
[1756896728118,7.28,209.82,209.74,7.64]
[1756896728520,0.03504576,209.81,209.74,7.64]
[1756896729924,1.77623368,209.81,209.74,7.64]
[1756896731321,0.03504576,209.81,209.76,7.64]
[1756896733223,0.03504576,209.81,209.8,7.3]
[1756896740133,5.3389093,209.95,209.8,7.3]
[1756896740134,5.3389093,209.96,209.8,7.3]
[1756896740339,7.36,209.94,209.85,7.3]
[1756896740633,7.36,209.99,209.9,7.3]
[1756896741926,7.36,209.96,209.86,7.3]
[1756896746436,7.36,209.96,209.87,7.3]
[1756896749540,14.29,210.09,209.9,7.3]
[1756896749541,7.36,210.01,209.9,7.3]
[1756896749933,2.72629656,210.05,209.93,7.3]
[1756896749934,10.08629656,210.05,209.93,7.3]
[1756896750234,7.36,210.05,209.93,7.3]
[1756896752139,7.36,210.05,209.93,10.02629656]
[1756896752340,7.36,210.05,209.94,7.3]
[1756896761743,7.36,210.05,209.94,2.72629656]
[1756896761945,7.36,210.05,209.95,7.96]
[1756896763545,7.36,210.05,209.91,36.02]
[1756896763745,7.36,210.05,209.94,2.72629656]
[1756896764049,7.36,210.05,209.92,2.72629656]
[1756896765641,7.36,210.05,209.95,2.72629656]
[1756896765847,7.36,210.05,209.96,7.96]
[1756896775452,10.08629656,210.05,209.96,7.96]
[1756896777147,7.36,210.05,209.96,7.96]
[1756896780256,7.36,210.05,209.93,7.96]
[1756896780459,2.72629656,210.0,209.89,7.96]
[1756896780761,7.26,209.99,209.89,7.96]
[1756896783153,2.72629656,209.97,209.89,7.96]
[1756896783359,7.26,209.96,209.89,7.96]
[1756896785357,7.26,209.96,209.85,7.96]
[1756896785761,9.98629656,209.96,209.85,7.96]
[1756896789261,7.26,209.92,209.85,7.96]
[1756896789461,7.26,209.95,209.85,7.96]
[1756896789660,2.72629656,209.94,209.85,7.96]
[1756896789965,7.26,209.95,209.85,7.96]
[1756896791562,2.72629656,209.94,209.85,7.96]
[1756896791762,7.84,209.93,209.85,7.96]
[1756896793161,2.72629656,209.91,209.85,7.96]
[1756896793362,7.84,209.9,209.79,7.68]
[1756896795959,10.56629656,209.94,209.81,2.72629656]
[1756896796166,10.56629656,209.94,209.82,7.68]
[1756896796364,7.84,209.98,209.85,7.68]
[1756896796560,7.84,210.01,209.91,7.68]
[1756896796962,7.84,210.04,209.92,2.72629656]
[1756896797265,7.84,210.04,209.93,7.68]
[1756896797566,9.58197582,210.04,209.96,9.42197582]
[1756896803371,7.84,210.04,209.96,9.42197582]
[1756896803572,9.58197582,210.04,209.96,9.42197582]
[1756896804171,9.58197582,210.04,209.97,1.74197582]
[1756896808875,7.84,210.04,209.97,1.74197582]
[1756896809074,7.84,210.04,209.98,7.68]
[1756896809281,7.84,210.04,209.99,1.74197582]
[1756896809778,7.84,210.11,210.01,9.42197582]
[1756896809979,1.74197582,210.1,210.02,1.74197582]
[1756896810281,116.78,210.13,210.02,1.74197582]
[1756896810282,9.58197582,210.09,210.02,1.74197582]
[1756896811179,7.84,210.09,210.02,1.74197582]
[1756896811984,7.84,210.09,210.03,7.68]
[1756896815580,1.74197582,210.08,210.0,9.42197582]
[1756896815780,7.84,210.07,210.0,9.42197582]
[1756896818387,7.84,210.07,210.0,7.68]
[1756896818587,9.58197582,210.06,210.0,7.68]
[1756896819885,7.84,210.06,210.0,7.68]
[1756896820583,7.84,210.06,210.0,9.42197582]
[1756896823884,9.58197582,210.06,209.91,4.287]
[1756896824084,7.92,210.03,209.88,7.77]
[1756896824290,7.92,210.03,209.95,1.74197582]
[1756896825592,1.74197582,210.02,209.95,1.74197582]
[1756896826986,1.74197582,210.02,209.96,7.77]
[1756896827193,7.92,210.03,209.97,1.74197582]
[1756896827592,7.92,210.03,209.97,9.51197582]
[1756896829793,7.92,210.03,209.97,7.77]
[1756896834400,7.92,210.03,209.97,9.51197582]
[1756896836902,7.92,210.03,209.97,7.77]
[1756896842201,55.92,210.09,209.92,7.77]
[1756896842202,1.74197582,209.98,209.92,7.77]
[1756896842807,9.66197582,209.98,209.92,7.77]
[1756896844003,9.66197582,209.98,209.89,7.77]
[1756896844196,7.92,209.95,209.89,7.77]
[1756896844599,1.74197582,209.94,209.89,7.77]
[1756896844801,7.92,209.93,209.86,9.51197582]
[1756896850411,7.92,210.0,209.92,1.74197582]
[1756896850612,7.92,210.0,209.93,7.77]
[1756896854009,1.74197582,209.99,209.93,7.77]
[1756896854212,7.5,209.96,209.89,1.74197582]
[1756896854415,7.5,209.96,209.9,7.8]
[1756896855511,9.24197582,209.99,209.92,7.8]
[1756896856515,1.74197582,209.97,209.92,7.8]
[1756896856716,7.5,209.96,209.92,7.8]
[1756896858109,7.5,210.0,209.88,7.8]
[1756896860018,7.5,210.0,209.9,2.72343765]
[1756896860221,7.5,210.0,209.91,7.8]
[1756896881127,7.5,210.0,209.91,2.72343765]
[1756896881327,7.5,210.0,209.92,7.8]
[1756896908455,12.8389093,210.0,209.92,7.8]
[1756896909556,7.5,210.0,209.92,7.8]
[1756896909751,12.8389093,210.0,209.92,7.8]
[1756896910147,7.5,210.0,209.92,7.8]
[1756896910852,5.3389093,210.01,209.92,7.8]
[1756896911052,7.96,210.04,209.93,3.96166129]
[1756896911358,7.96,210.04,209.96,7.8]
[1756896911557,13.2989093,210.04,209.96,7.8]
[1756896911757,2.72343765,210.06,209.97,4.34700802]
[1756896911758,5.3389093,210.03,209.97,4.34700802]
[1756896912055,7.66,210.02,209.98,4.34700802]
[1756896912252,5.3389093,210.03,209.99,4.34700802]
[1756896912453,5.3389093,210.03,210.0,4.34700802]
[1756896912653,7.66,210.02,209.95,7.44]
[1756896912955,7.66,210.02,209.96,4.36406591]
[1756896913156,5.3389093,210.03,209.97,4.36406591]
[1756896913357,7.66,210.02,209.98,4.36406591]
[1756896913552,5.3389093,210.03,209.99,4.36406591]
[1756896913753,7.66,210.02,210.0,4.36406591]
[1756896913953,7.66,210.02,209.95,7.44]
[1756896914157,7.66,210.02,209.96,4.36536264]
[1756896914353,7.66,210.02,209.97,4.36536264]
[1756896914553,7.66,210.02,209.98,4.36536264]
[1756896914851,7.66,210.02,209.99,4.36536264]
[1756896915057,5.3389093,210.03,210.0,4.36536264]
[1756896915248,7.66,210.02,209.95,7.44]
[1756896915454,7.66,210.02,209.96,4.3654938]
[1756896915653,7.66,210.02,209.97,4.3654938]
[1756896915855,7.66,210.02,209.98,4.3654938]
[1756896916056,5.3389093,210.03,209.99,4.3654938]
[1756896916256,5.3389093,210.03,210.0,4.3654938]
[1756896916558,7.66,210.02,209.95,7.44]
[1756896916754,7.66,210.02,209.96,4.36527347]
[1756896916954,7.66,210.02,209.97,4.36527347]
[1756896917155,5.3389093,210.03,209.98,4.36527347]
[1756896917354,5.3389093,210.03,209.99,4.36527347]
[1756896917550,5.3389093,210.03,210.0,4.36527347]
[1756896917755,7.66,210.02,209.95,7.44]
[1756896917957,7.66,210.02,209.96,4.3649766]
[1756896918154,5.3389093,210.03,209.97,4.3649766]
[1756896918355,7.66,210.02,209.98,4.3649766]
[1756896918558,7.66,210.02,209.99,4.3649766]
[1756896918758,5.3389093,210.03,210.0,4.3649766]
[1756896918958,7.66,210.02,209.96,7.44]
[1756896919158,5.3389093,210.03,209.97,4.36479431]
[1756896919354,5.3389093,210.03,209.98,4.36479431]
[1756896919564,7.66,210.01,209.99,4.36479431]
[1756896919764,7.66,210.01,210.0,4.36479431]
[1756896921865,7.66,210.01,209.93,7.44]
[1756896922065,9.40237689,209.99,209.93,7.44]
[1756896927063,7.66,209.99,209.93,7.44]
[1756896930465,12.9989093,210.03,209.97,7.44]
[1756896930665,5.3389093,210.05,209.98,1.74237689]
[1756896930871,12.9989093,210.06,210.01,7.44]
[1756896931073,7.66,210.06,210.0,1.74237689]
[1756896931262,7.66,210.06,210.0,9.18237689]
[1756896932362,5.3389093,210.08,210.02,1.74237689]
[1756896932566,96.23097783,210.09,210.03,7.44]
[1756896932873,90.89206853,210.09,209.98,3.96166129]
[1756896933071,90.89206853,210.09,210.08,7.44]
[1756896933773,9.40237689,210.13,210.08,7.44]
[1756896933974,7.66,210.12,210.08,7.44]
[1756896934469,1.74237689,210.13,210.08,7.44]
[1756896934675,7.66,210.12,210.08,7.44]
[1756896935975,1.74237689,210.13,210.08,7.44]
[1756896936174,7.66,210.12,210.08,7.44]
[1756896936578,1.74237689,210.13,210.08,7.44]
[1756896936771,7.66,210.12,210.08,7.44]
[1756896937475,1.74237689,210.13,210.08,7.44]
[1756896937776,7.66,210.12,210.05,9.18237689]
[1756896939871,7.66,210.12,210.07,1.74237689]
[1756896940676,7.66,210.12,210.08,7.44]
[1756896941281,7.66,210.13,210.08,7.44]
[1756896941484,9.40237689,210.14,210.07,9.18237689]
[1756896942081,9.40237689,210.14,210.07,7.44]
[1756896943885,1.74237689,210.12,210.04,1.74237689]
[1756896944082,1.74237689,210.12,210.05,7.41]
[1756896944985,7.61,210.11,210.05,7.41]
[1756896947490,7.61,210.09,210.05,7.41]
[1756896948080,7.61,210.09,210.03,7.41]
[1756896949685,7.61,210.12,210.07,7.41]
[1756896949987,7.61,210.12,210.06,1.74237689]
[1756896950189,7.61,210.12,210.07,7.41]
[1756896950489,7.61,210.12,210.06,1.74237689]
[1756896951492,7.61,210.13,210.06,7.41]
[1756896955093,9.35237689,210.13,210.06,7.41]
[1756896958799,7.61,210.13,210.06,7.41]
[1756896959001,9.35237689,210.13,210.06,7.41]
[1756896961003,1.74237689,210.11,209.99,7.41]
[1756896961204,7.61,210.1,210.02,1.74237689]
[1756896961403,7.61,210.1,210.03,7.41]
[1756896961803,7.35237689,210.1,210.03,7.41]
[1756896962000,1.74237689,210.08,210.03,7.41]
[1756896962392,1.74237689,210.08,210.01,7.41]
[1756896963811,1.74237689,210.06,210.01,7.41]
[1756896964104,1.74237689,210.04,209.98,7.41]
[1756896964306,7.61,210.03,209.98,7.41]
[1756896964603,1.74237689,210.04,209.98,7.41]
[1756896965206,9.35237689,210.04,209.98,7.41]
[1756896966608,5.3389093,210.11,209.98,7.41]
[1756896966609,1.74237689,210.06,209.98,7.41]
[1756896967307,9.35237689,210.06,209.98,7.41]
[1756896970012,1.74237689,210.04,209.98,7.41]
[1756896977412,7.35,210.03,209.98,7.41]
[1756896977617,1.74237689,210.04,209.98,7.41]
[1756896977818,1.74237689,210.02,209.98,7.41]
[1756896978018,7.35,210.01,209.98,7.41]
[1756896978214,7.35,210.01,209.96,7.82]
[1756896978415,7.35,210.01,209.95,1.74237689]
[1756896978613,1.74237689,210.0,209.95,7.82]
[1756896978814,7.35,209.99,209.92,7.82]
[1756896979014,7.35,209.99,209.93,1.74237689]
[1756896979214,7.35,209.99,209.94,7.82]
[1756896979414,7.35,209.99,209.91,345.08]
[1756896979615,7.35,209.99,209.92,7.82]
[1756896980117,7.35,210.03,209.92,7.82]
[1756896985824,7.35,210.06,209.94,7.82]
[1756896986024,7.35,210.06,209.97,7.82]
[1756896991627,7.35,210.1,209.97,7.82]
[1756896995232,7.35,210.1,209.98,7.82]
[1756897000432,7.35,210.1,210.0,7.82]
[1756897006545,7.93,210.12,210.02,7.5]
[1756897010255,2.72267694,210.13,210.02,7.5]
[1756897010256,7.93,210.09,210.02,7.5]
[1756897010848,7.93,210.09,209.96,7.5]
[1756897017047,7.93,210.09,209.99,7.5]
[1756897019352,7.93,210.09,210.01,2.72267694]
[1756897019651,7.93,210.09,210.02,7.5]
[1756897020353,7.93,210.14,210.02,7.5]
[1756897025053,7.93,210.14,210.02,10.22267694]
[1756897025257,7.93,210.14,210.03,7.5]
[1756897027864,7.93,210.14,210.05,2.72267694]
[1756897028163,7.93,210.14,210.06,7.5]
[1756897041573,7.93,210.14,210.07,1.74016801]
[1756897045684,7.93,210.14,210.06,7.5]
[1756897045986,7.93,210.14,210.06,9.24016801]
[1756897046186,7.93,210.14,210.06,7.5]
[1756897046382,7.93,210.14,210.06,9.24016801]
[1756897049592,7.71,210.1,210.03,7.3]
[1756897049791,1.74016801,210.09,210.03,7.3]
[1756897051285,7.71,210.08,209.98,71.5041344]
[1756897051488,7.71,210.08,210.01,7.3]
[1756897052392,7.71,210.08,210.01,9.04016801]
[1756897056393,7.71,210.08,209.98,71.5041344]
[1756897056394,7.71,210.13,210.03,9.04016801]
[1756897056595,7.71,210.11,210.03,9.04016801]
[1756897056889,7.71,210.11,210.05,9.04016801]
[1756897058687,7.71,210.15,210.09,9.04016801]
[1756897061391,7.71,210.18,210.11,1.74016801]
[1756897062695,7.71,210.18,210.11,9.10016801]
[1756897066002,7.71,210.18,210.11,7.36]
[1756897066202,7.51,210.16,210.08,1.74016801]
[1756897067102,9.25016801,210.16,210.08,1.74016801]
[1756897068492,7.51,210.16,210.08,1.74016801]
[1756897068693,7.51,210.16,210.07,7.36]
[1756897068694,9.25016801,210.16,210.07,9.10016801]
[1756897069008,7.51,210.13,210.07,7.36]
[1756897069605,9.25016801,210.13,210.07,7.36]
[1756897069903,5.3389093,210.16,210.07,9.10016801]
[1756897070098,1.74016801,210.16,210.07,9.10016801]
[1756897070704,7.51,210.15,210.07,9.10016801]
[1756897071704,7.51,210.13,210.07,9.10016801]
[1756897073196,1.74016801,210.16,210.07,9.10016801]
[1756897073400,7.51,210.16,210.1,7.36]
[1756897074999,9.25016801,210.16,210.1,7.36]
[1756897075704,7.51,210.16,210.1,7.36]
[1756897077503,7.51,210.16,210.11,1.74016801]
[1756897077705,7.51,210.16,210.12,7.36]
[1756897078303,7.51,210.16,210.11,1.74016801]
[1756897078708,7.51,210.16,210.12,7.36]
[1756897079410,7.51,210.16,210.11,1.74016801]
[1756897079612,7.51,210.16,210.12,7.36]
[1756897079904,7.51,210.16,210.11,1.74016801]
[1756897080108,7.51,210.16,210.12,7.36]
[1756897080804,7.51,210.16,210.11,1.74016801]
[1756897081412,7.51,210.18,210.11,1.74016801]
[1756897082007,1.74016801,210.17,210.09,9.10016801]
[1756897082208,7.51,210.16,210.09,9.10016801]
[1756897085317,7.51,210.16,210.09,7.36]
[1756897085512,7.51,210.16,210.1,1.74016801]
[1756897086016,7.51,210.16,210.09,7.36]
[1756897086218,7.51,210.16,210.1,1.74016801]
[1756897088023,9.25016801,210.16,210.09,7.36]
[1756897091022,7.51,210.16,210.09,7.36]
[1756897094721,7.51,210.16,210.1,1.74016801]
[1756897094922,1.74016801,210.17,210.1,1.74016801]
[1756897095125,9.49016801,210.17,210.11,7.63]
[1756897095422,7.75,210.17,210.11,7.63]
[1756897104143,5.3389093,210.19,210.12,2.71855435]
[1756897104338,7.75,210.21,210.13,7.63]
[1756897112951,7.75,210.24,210.16,7.63]
[1756897127157,7.75,210.24,210.12,7.65]
[1756897129964,2.71855435,210.22,210.12,7.65]
[1756897130169,7.75,210.24,210.07,7.65]
[1756897130170,7.22,210.18,210.07,7.65]
[1756897130365,2.71855435,210.16,210.07,7.65]
[1756897130562,7.22,210.15,210.07,7.65]
[1756897142575,7.22,210.15,210.09,7.65]
[1756897149182,7.22,210.15,210.03,7.65]
[1756897149378,7.22,210.16,210.04,7.65]
[1756897152582,2.71855435,210.14,210.04,7.65]
[1756897152785,7.26,210.13,210.04,7.65]
[1756897153084,7.26,210.13,209.99,7.75]
[1756897153981,5.3389093,210.17,209.99,7.75]
[1756897153982,7.26,210.1,209.99,7.75]
[1756897155887,2.71855435,210.08,209.99,7.75]
[1756897156087,7.26,210.07,209.99,7.75]
[1756897157584,7.26,210.07,209.96,7.75]
[1756897159290,7.26,210.07,209.97,7.75]
[1756897161490,12.34,210.11,209.97,7.75]
[1756897161491,7.26,210.11,209.97,7.75]
[1756897162283,7.26,210.06,209.97,7.75]
[1756897163691,1.74195253,210.04,209.97,7.75]
[1756897164785,9.00195253,210.02,209.95,7.75]
[1756897165589,7.26,210.02,209.95,7.75]
[1756897166589,7.26,210.02,209.95,9.49195253]
[1756897167292,9.00195253,210.02,209.95,7.75]
[1756897172395,7.26,210.02,209.95,7.75]
[1756897172592,9.00195253,210.02,209.95,7.75]
[1756897174501,9.00195253,210.02,209.92,7.75]
[1756897174810,9.00195253,210.02,209.93,1.74195253]
[1756897175601,9.00195253,210.02,209.94,7.75]
[1756897182914,7.26,210.02,209.96,7.37]
[1756897183315,7.26,210.02,209.91,28.72]
[1756897183316,1.74195253,210.05,209.98,7.37]
[1756897183614,7.56,210.04,209.98,7.37]
[1756897191119,7.56,210.02,209.94,1.74195253]
[1756897191317,1.74195253,210.01,209.94,1.74195253]
[1756897191621,1.74195253,210.01,209.95,7.37]
[1756897195415,9.30195253,210.01,209.92,7.37]
[1756897196017,7.56,210.01,209.92,7.37]
[1756897196214,7.56,210.01,209.91,1.74195253]
[1756897196215,9.30195253,210.01,209.94,7.37]
[1756897200318,7.56,209.98,209.91,7.37]
[1756897200518,1.74195253,209.97,209.91,7.37]
[1756897201225,7.56,209.98,209.91,7.37]
[1756897201523,7.56,209.98,209.91,9.11195253]
[1756897201723,9.30195253,210.01,209.91,7.37]
[1756897201918,1.74195253,209.99,209.91,9.11195253]
[1756897203227,1.74195253,209.99,209.92,7.37]
[1756897203427,1.74195253,209.99,209.92,9.11195253]
[1756897203927,1.74195253,210.0,209.92,9.11195253]
[1756897208529,7.56,210.01,209.92,9.11195253]
[1756897208726,320.06,210.13,209.96,1.74195253]
[1756897208727,7.56,210.06,209.96,1.74195253]
[1756897208925,7.56,210.06,209.97,7.37]
[1756897209121,9.30195253,210.06,209.99,7.37]
[1756897209321,7.56,210.03,209.99,7.37]
[1756897209626,7.56,209.99,209.93,7.37]
[1756897209826,1.74195253,209.98,209.92,7.37]
[1756897210232,26.62,210.09,209.92,7.37]
[1756897210233,7.56,209.95,209.92,7.37]
[1756897210427,1.74195253,209.96,209.88,3.97060598]
[1756897210732,1.74195253,209.96,209.89,7.37]
[1756897212830,7.56,209.98,209.89,9.11195253]
[1756897213028,7.56,209.98,209.92,7.27]
[1756897214632,1.74195253,209.97,209.92,7.27]
[1756897214834,7.33,209.96,209.88,7.27]
[1756897215030,7.33,209.96,209.88,9.01195253]
[1756897217829,7.33,209.94,209.88,7.27]
[1756897219236,7.33,209.92,209.86,1.74195253]
[1756897219635,7.33,209.92,209.85,7.27]
[1756897220034,9.07195253,209.92,209.85,7.27]
[1756897223934,7.33,209.92,209.85,7.27]
[1756897224133,9.07195253,209.92,209.85,7.27]
[1756897225637,7.33,209.92,209.85,7.27]
[1756897228931,10.05506236,209.92,209.82,7.27]
[1756897229828,7.33,209.92,209.82,7.27]
[1756897232236,7.33,209.9,209.82,7.27]
[1756897232433,7.33,209.9,209.79,7.27]
[1756897233339,7.33,209.87,209.79,7.27]
[1756897234635,7.33,209.87,209.75,7.27]
[1756897236838,7.33,209.87,209.77,7.27]
[1756897253957,7.33,209.87,209.78,7.39]
[1756897266349,7.37,209.89,209.78,11.38497271]
[1756897266550,114.50506236,209.9,209.78,11.38497271]
[1756897266947,7.37,209.89,209.78,11.38497271]
[1756897267152,114.50506236,209.9,209.78,11.38497271]
[1756897267454,7.37,209.89,209.78,11.38497271]
[1756897268855,114.50506236,209.9,209.78,11.38497271]
[1756897269252,7.37,209.89,209.78,11.38497271]
[1756897269450,114.50506236,209.9,209.78,11.38497271]
[1756897270055,119.12506236,209.9,209.78,11.38497271]
[1756897270757,7.37,209.89,209.78,11.38497271]
[1756897270950,119.12506236,209.9,209.78,11.38497271]
[1756897271259,7.37,209.89,209.78,11.38497271]
[1756897271460,7.37,209.89,209.78,7.39]
[1756897272162,7.18,209.89,209.78,11.38497271]
[1756897272555,119.12506236,209.9,209.78,11.38497271]
[1756897272755,7.18,209.89,209.78,11.38497271]
[1756897272955,119.12506236,209.9,209.78,11.38497271]
[1756897273360,7.18,209.89,209.78,7.39]
[1756897273954,119.12506236,209.9,209.79,11.35497271]
[1756897274361,7.18,209.89,209.79,11.35497271]
[1756897274563,7.18,209.89,209.8,7.36]
[1756897276763,7.18,209.87,209.8,7.36]
[1756897283772,12.5189093,209.87,209.8,7.36]
[1756897284071,7.18,209.87,209.8,7.36]
[1756897287171,12.5189093,209.87,209.8,7.36]
[1756897287665,1.74547514,209.84,209.77,7.36]
[1756897289778,7.18,209.85,209.82,7.36]
[1756897289984,118.14547514,209.88,209.82,7.36]
[1756897290183,7.18,209.86,209.82,7.36]
[1756897290476,7.18,209.85,209.82,7.36]
[1756897291079,7.18,209.85,209.78,1.74547514]
[1756897291275,7.18,209.85,209.79,7.36]
[1756897291476,1.74547514,209.86,209.79,7.36]
[1756897292678,1.74547514,209.87,209.79,7.36]
[1756897293275,7.18,209.88,209.81,1.74547514]
[1756897293478,5.3389093,209.9,209.84,7.36]
[1756897293479,7.18,209.9,209.84,7.36]
[1756897298382,7.18,209.9,209.84,9.10547514]
[1756897298572,5.3389093,209.92,209.86,1.74547514]
[1756897298778,1.74547514,209.91,209.86,7.36]
[1756897299079,7.18,209.9,209.86,7.36]
[1756897299480,1.74547514,209.91,209.86,7.36]
[1756897299780,7.18,209.9,209.86,7.36]
[1756897300576,1.74547514,209.91,209.86,7.36]
[1756897300773,7.18,209.9,209.86,7.36]
[1756897300980,1.74547514,209.91,209.86,7.36]
[1756897301782,7.2,209.9,209.86,7.36]
[1756897302085,1.74547514,209.91,209.86,7.36]
[1756897302392,7.2,209.9,209.83,7.86]
[1756897303990,1.74547514,209.91,209.85,7.86]
[1756897304194,130.82438444,209.93,209.85,7.86]
[1756897304390,14.28438444,209.93,209.85,7.86]
[1756897304594,12.5389093,209.93,209.85,7.86]
[1756897304780,14.28438444,209.93,209.85,7.86]
[1756897306491,12.5389093,209.93,209.87,7.86]
[1756897306694,8.00831649,209.95,209.79,3.99497271]
[1756897306695,7.08438444,209.95,209.89,7.86]
[1756897306889,118.20547514,209.95,209.89,7.86]
[1756897307586,7.2,209.96,209.89,7.86]
[1756897307792,7.2,209.96,209.91,7.86]
[1756897307793,123.64,209.96,209.91,7.86]
[1756897307992,116.44,209.96,209.91,7.86]
[1756897308193,7.2,209.95,209.91,7.86]
[1756897308392,116.44,209.96,209.91,7.86]
[1756897308598,7.2,209.95,209.91,7.86]
[1756897308895,116.44,209.96,209.91,7.86]
[1756897309395,7.2,209.94,209.88,7.86]
[1756897309588,8.94547514,209.93,209.85,7.86]
[1756897310593,8.94547514,209.93,209.86,1.74547514]
[1756897312093,8.94547514,209.93,209.87,7.86]
[1756897312295,7.2,209.93,209.88,1.74547514]
[1756897312596,7.2,209.93,209.89,7.86]
[1756897313390,7.2,209.93,209.88,1.74547514]
[1756897313592,116.38,209.94,209.89,7.86]
[1756897313794,7.2,209.93,209.89,7.86]
[1756897314396,116.38,209.94,209.89,7.86]
[1756897314787,7.2,209.93,209.89,7.86]
[1756897314989,8.94547514,209.97,209.9,1.74547514]
[1756897315192,116.38,209.96,209.9,1.74547514]